Cogmind - Beta 15 @@@ ROGUE MODE // 2025.08.10 @ 02:10:10 Player: Mogwok Wargfriend Result: Destroyed by DB-QMK(R) with Subdweller Laser Performance ------------- Evolutions (0) 0 Regions Visited (2) 400 Robots Destroyed (41) 205 Value Destroyed (749) 749 Prototype IDs (4) 80 Alien Tech Used (0) 0 Bonus (0) 0 TOTAL SCORE: 1434 Bonus ------- None Cogmind --------- Core Integrity 0/250 Matter 274/300 Energy 265/265 System Corruption 0% Temperature Cool (6) Movement Walking (190) Ox1 Location -10/Subcaves Parts ------- > --- POWER (1) -------- Improved Ion Engine > --- PROPULSION (2) --- Aluminum Leg Aluminum Leg > --- UTILITY (2) ------ Large Storage Unit Makeshift Light Armor Plating > --- WEAPON (2) ------- Beam Rifle Subdweller Machine Gun > --- INVENTORY (15) --- Improved Ion Engine Improved Heat Sink High-capacity Matter Pod (200) Sensor Array Scrap Shield Hacking Suite Medium Laser Subdweller Machine Gun Battle Cannon Subdweller Shrapnel Launcher Mining Laser Scrap Shield Fragment (43) Peak State ------------ > --- POWER ------------ Improved Ion Engine > --- PROPULSION ------- Aluminum Leg Aluminum Leg > --- UTILITY ---------- Large Storage Unit Makeshift Light Armor Plating > --- WEAPON ----------- Beam Rifle Subdweller Machine Gun > --- INVENTORY -------- Improved Ion Engine Improved Heat Sink High-capacity Matter Pod Sensor Array Scrap Shield Hacking Suite Medium Laser Subdweller Machine Gun Battle Cannon Subdweller Shrapnel Launcher Mining Laser Scrap Shield Fragment [Rating: 15] Favorites ----------- Power Improved Ion Engine Engine Improved Ion Engine Propulsion Aluminum Leg Leg Aluminum Leg Utility Large Storage Unit Device Improved Heat Sink Storage Large Storage Unit Protection Light Armor Plating Weapon Beam Rifle Energy Gun Beam Rifle Ballistic Gun Assault Rifle Ballistic Cannon Battle Cannon Special Weapon Mining Laser Special Melee Weapon Datajack Build | -11 -10 -10 ------- Run | Yrd Mat Sub Slots Evolved . | . . . Power . | . . . Propulsion . | . . . Utility . | . . . Weapon . | . . . Parts Attached 34 | 9 13 12 Power 5 | 2 2 1 Engine 5 | 2 2 1 Core . | . . . Reactor . | . . . Propulsion 6 | 2 2 2 Treads . | . . . Leg 6 | 2 2 2 Wheel . | . . . Hover . | . . . Flight . | . . . Utility 9 | 3 3 3 Device 2 | 1 1 . Storage 4 | 2 2 . Processor . | . . . Hackware . | . . . Protection 3 | . . 3 Artifact . | . . . Weapon 14 | 2 6 6 Energy Gun 5 | 1 3 1 Energy Cannon . | . . . Ballistic Gun 6 | 1 1 4 Ballistic Cannon 1 | . . 1 Launcher . | . . . Special Weapon 1 | . 1 . Impact Weapon . | . . . Slashing Weapon . | . . . Piercing Weapon . | . . . Special Melee Weapon 1 | . 1 . Unidentified Prototypes . | . . . Parts Lost 9 | . 1 8 Power 1 | . . 1 Propulsion 2 | . . 2 Utility 2 | . . 2 Weapon 4 | . 1 3 Highest Loss Streak 2 | . 1 2 To Critical Strikes . | . . . Average Backups 12 | 4 12 13 Power 1 | . 1 1 Propulsion 1 | 1 2 1 Utility 5 | . 4 5 Weapon 4 | 1 3 4 Tool/Special . | . . . Unused Backups 24 | 2 11 11 Power 2 | . 1 1 Propulsion 6 | 2 4 . Utility 9 | . 3 6 Weapon 7 | . 3 4 Tool/Special . | . . . Average Slot Usage (%) 99 | . 99 99 Engine 13 | . 14 13 Leg 28 | . 28 28 Device 7 | . 14 3 Storage 14 | . 14 14 Protection 6 | . . 10 Energy Gun 7 | . 7 7 Ballistic Gun 14 | . 19 12 Ballistic Cannon 4 | . . 6 Peak Build Rating 15 | 7 13 15 Average Rating 11 | 5 10 12 On Entrance 6 | . 7 13 Naked Turns . | . . . Heaviest Build 38 | 14 33 38 Greatest Support 20 | 20 20 20 Greatest Overweight (x) 4 | 4 1 1 Average Overweight (x) . | . . 1 Largest Inventory Capacity 15 | 8 15 15 Average Capacity 14 | 7 13 15 Most Carried 15 | 8 15 15 Average Carried 13 | 4 12 14 Final Capacity 15 | 8 15 15 Final Carried 15 | 8 15 13 Class Distribution -------------------- 100% | Mutant Dominant Class ---------------- Mutant | -10/Materials Mutant | -10/Subcaves Resources | -11 -10 -10 ----------- Run | Yrd Mat Sub Matter Collected 1544 | 399 523 622 Remotely . | . . . Salvage Created 1191 | 201 696 294 Parts 89 | 17 55 17 Haulers Intercepted 2 | . 2 . Recyclers Shooed 4 | . 4 . Parts Field Recycled . | . . . Retrieved Matter . | . . . Parts Self-Destructed 13 | . . 13 Prevented . | . . . Kills | -11 -10 -10 ------- Run | Yrd Mat Sub Combat Hostiles Destroyed 23 | . 11 12 Guns 19 | . 11 8 Cannons 4 | . . 4 Classes Destroyed 11 | 3 6 2 Worker 2 | 1 1 . Tunneler 4 | 4 . . Hauler 2 | . 2 . Recycler 3 | 1 2 . Mechanic 1 | . 1 . Operator 1 | . 1 . Turret 2 | . . 2 Watcher 3 | . 3 . Swarmer 12 | . 5 7 Grunt 6 | . 6 . Subdweller 5 | . . 5 Best Kill Streak 4 | 2 3 4 Combat Bots Only 4 | . 3 4 Max Kills in Single Turn 1 | 1 1 1 Gunslinging . | . . . Exploded . | . . . Melee . | . . . Uniques/NPCs Destroyed . | . . . Combat | -11 -10 -10 -------- Run | Yrd Mat Sub Hostile Shots Fired 224 | . 63 161 Missed 74 | . 17 57 Hits 150 | . 46 104 Projectile 150 | . 46 104 Critical Strikes 1 | . 1 . Damage Taken 1873 | . 546 1327 Core 251 | . 94 157 Absorbed by Shields . | . . . Regen/Repaired (Parts) 62 | . 62 . Core Remaining (%) 100 | 100 . . Volleys Fired 197 | 14 65 118 Largest 2 | 2 2 2 Hottest 156 | 60 100 156 Shots Fired 372 | 28 127 217 Gun 290 | 28 125 137 Cannon 56 | . . 56 Launcher . | . . . Special 26 | . 2 24 Kinetic 233 | 14 84 135 Thermal 139 | 14 43 82 Explosive . | . . . Electromagnetic . | . . . Robot Hit Streak 15 | 6 8 15 Robot Miss Streak 5 | 2 5 3 Penetration Max . | . . . Secondary Targets 2 | . 1 1 Max Gunslinging Chain 1 | . 1 1 Shots Hit Robots 181 | 18 66 97 Core Hits 63 | 7 36 20 Critical Kills . | . . . Critical Parts Destroyed . | . . . Critical Strikes 3 | . . 3 Burn 3 | . . 3 Melee Attacks . | . . . Impact . | . . . Slashing . | . . . Piercing . | . . . Sneak Attacks . | . . . Combat Hostiles . | . . . Follow-up Attacks . | . . . Damage Inflicted 2438 | 209 825 1404 Guns 1912 | 209 825 878 Cannons 526 | . . 526 Explosions . | . . . Melee . | . . . Ramming . | . . . Kinetic 1659 | 98 512 1049 Thermal 779 | 111 313 355 Explosive . | . . . Electromagnetic . | . . . Impact . | . . . Slashing . | . . . Piercing . | . . . Highest Corruption . | . . . Average Corruption . | . . . Corruption Purged . | . . . Corruption Blocked . | . . . Overload Shots . | . . . Overflow Damage 16 | . . 16 Projectiles 16 | . . 16 Explosions . | . . . Melee . | . . . Knockbacks 4 | . . 4 Impact . | . . . Kinetic 4 | . . 4 Secondary . | . . . Self-Inflicted Damage . | . . . Shots . | . . . Rammed . | . . . Targets Rammed . | . . . Kicked . | . . . Crushed . | . . . Highest Temperature 153 | . 153 11 Average Temperature 31 | . 32 6 Received Heat Transfer 651 | . 267 384 Siege Activations . | . . . Martial Activations . | . . . Shielding Activations . | . . . Robots Disrupted . | . . . Combat Hostiles . | . . . Robots Corrupted . | . . . Combat Hostiles . | . . . Parts Fried . | . . . Impact Corruptions . | . . . Robots Melted . | . . . Combat Hostiles . | . . . Parts Melted 2 | . . 2 Heat Transferred 2139 | 250 779 1110 Parts Sabotaged . | . . . Parts Stolen . | . . . Parts Stripped . | . . . Power Chain Reactions . | . . . Alert | -11 -10 -10 ------- Run | Yrd Mat Sub Maximum Alert Level . | . . . Low Security (%) 100 | 100 100 . Level 1 . | . . . Level 2 . | . . . Level 3 . | . . . Level 4 . | . . . Level 5 . | . . . High Security . | . . . Max Security . | . . . Peak Influence 124 | 5 124 . Initial . | . . . Average 23 | . 26 . Influence Increases 897 | 30 422 445 Destroy 0b10 Robot/C 400 | . 220 180 Destroy 0b10 Robot/NC 80 | 30 50 . Destroy Leader 70 | . 60 10 Successful Hack 14 | . 14 . Disable Machine 15 | . 15 . Destroy Structure 3 | . 3 . Partial Spotted 15 | . 15 . Lose Combat Pursuer 300 | . 45 255 Influence Decreases 897 | 30 422 445 Time Decay 830 | 30 412 388 Lost Part 67 | . 10 57 Squads Dispatched 2 | . 2 . Investigation 1 | . 1 . Extermination . | . . . Reinforcement 1 | . 1 . Assault . | . . . Garrison . | . . . Intercept . | . . . Searches Triggered . | . . . Construction Impeded . | . . . Haulers Reinforced . | . . . Active Scanning Responses . | . . . Cargo Convoy Interrupts . | . . . Stealth | -11 -10 -10 --------- Run | Yrd Mat Sub Distress Signals 2 | . 2 . Communications Jammed . | . . . Distress Signals . | . . . Times Spotted 51 | . 25 26 Peak Tracking Total 6 | . 3 6 Tactical Retreats 9 | . 2 7 Traps | -11 -10 -10 ------- Run | Yrd Mat Sub Traps Triggered 2 | . . 2 Indirectly . | . . . Trap Hack Attempts 6 | . 6 . Triggered 1 | . 1 . Disarmed . | . . . Reprogrammed . | . . . Reused . | . . . Traps Extracted . | . . . Installed . | . . . Triggered . | . . . Machines | -11 -10 -10 ---------- Run | Yrd Mat Sub Machines Disabled 3 | . 1 2 Max in Single Turn 1 | . 1 1 Machines Repaired . | . . . Machines Dismantled . | . . . Machines Sabotaged . | . . . Overloaded Fab Kills . | . . . Hacking | -11 -10 -10 --------- Run | Yrd Mat Sub Machines Accessed 9 | . 9 . Terminals 6 | . 6 . Fabricators . | . . . Repair Stations 1 | . 1 . Recycling Units 2 | . 2 . Scanalyzers . | . . . Garrison Access . | . . . Total Hacks 37 | . 37 . Successful 21 | . 21 . Failed 15 | . 15 . Catastrophic 1 | . 1 . Database Lockouts 1 | . 1 . Manual 26 | . 26 . Terminals 25 | . 25 . Fabricators . | . . . Repair Stations 3 | . 3 . Recycling Units 9 | . 9 . Scanalyzers . | . . . Garrison Access . | . . . Terminal Hacks 7 | . 7 . Record 1 | . 1 . Robot Analysis 2 | . 2 . Prototype ID Bank 2 | . 2 . Locate Traps 2 | . 2 . Fabricator Hacks . | . . . Repair Station Hacks 3 | . 3 . Scan Component 2 | . 2 . Repair 1 | . 1 . Recycling Unit Hacks 4 | . 4 . Report Inventory 2 | . 2 . Retrieve Components 2 | . 2 . Scanalyzer . | . . . Garrison Access Hacks . | . . . Unauthorized Hacks 7 | . 7 . Terminals 4 | . 4 . Botnet 3 | . 3 . Operators 1 | . 1 . Fabricators . | . . . Repair Stations . | . . . Recycling Units 3 | . 3 . Reject 2 | . 2 . Mask 1 | . 1 . Scanalyzers . | . . . Garrison Access . | . . . Data Cores Recovered . | . . . Used . | . . . Hacking Detections 9 | . 9 . Full Trace Events 1 | . 1 . Feedback Events . | . . . Feedback Blocked . | . . . Robot Schematics Acquired . | . . . Robots Built . | . . . Authchips . | . . . Time . | . . . Total Robot Build Rating . | . . . Part Schematics Acquired . | . . . Parts Built . | . . . Authchips . | . . . Time . | . . . Total Part Build Rating . | . . . Parts Repaired 1 | . 1 . Time 26 | . 26 . Parts Recycled . | . . . Recycled Matter . | . . . Retrieved Matter . | . . . Retrieved Components 8 | . 8 . Parts Scanalyzed . | . . . Part Schematics Acquired . | . . . Parts Damaged . | . . . Bothacking | -11 -10 -10 ------------ Run | Yrd Mat Sub Used RIF Installer . | . . . Robots Hacked . | . . . Non-combat . | . . . Combat . | . . . Robot Hacks Applied . | . . . Relay Couplers Released . | . . . Fabnet Peak Effective % . | . . . Robots Rewired . | . . . Allies Hacked . | . . . Hacks Repelled . | . . . Allies | -11 -10 -10 -------- Run | Yrd Mat Sub Total Allies . | . . . Largest Group . | . . . Highest-Rated Group . | . . . Highest-Rated Ally . | . . . Total Orders . | . . . Ally Attacks . | . . . Total Damage . | . . . Kills . | . . . Allies Corrupted . | . . . Allies Melted . | . . . Intel | -11 -10 -10 ------- Run | Yrd Mat Sub Active Infowar (turns) 1390 | 87 1303 . Seismic 1390 | 87 1303 . Robot Analysis Total 2 | . 2 . Derelict Logs Recovered 2 | . . 2 Drone Launches . | . . . Drone Recoveries . | . . . Exploration | -11 -10 -10 ------------- Run | Yrd Mat Sub Turns Passed 6185 | 232 2195 3758 Spaces Moved 2770 | 134 983 1653 Core 41 | 41 . . Treads . | . . . Legs 2729 | 93 983 1653 Wheels . | . . . Hover . | . . . Flight . | . . . Fastest Speed 50 | 50 120 190 Average Speed 177 | 126 164 190 Slowest Speed 250 | 250 190 190 Overloaded Moves . | . . . Propulsion Burnouts . | . . . Robots Hopped . | . . . Potential Cave-ins . | . . . Cave-ins Triggered . | . . . Exploration Rate (%) 55 | 7 99 61 Regions Visited 2 Branch Regions 1 Pre-discovered Areas . | . . . Known Exits Taken . | . . . Unknown Exits Taken 2 | 1 1 . Scrap Searched 12 | . . 12 Spaces Dug 7 | . 2 5 Terrain Destroyed 13 | . 2 11 Melee . | . . . Projectile 13 | . 2 11 AOE . | . . . Terrain Rammed . | . . . Walls Destroyed . | . . . Machines Disabled . | . . . Actions | -11 -10 -10 --------- Run | Yrd Mat Sub Total 3638 | 167 1456 2015 Wait 545 | . 340 205 Move 2768 | 133 982 1653 Hop . | . . . Pick Up 45 | 8 24 13 Fast Attach 10 | 8 2 . Attach 13 | . 2 11 Detach 4 | 1 1 2 Swap 17 | 1 11 5 Drop 33 | 2 23 8 Fire 197 | 14 65 118 Melee . | . . . Ram . | . . . Kick . | . . . Crush . | . . . Escape Stasis . | . . . Rewire . | . . . Trap 6 | . 6 . Miscellaneous . | . . . Route ------- -11/Scrapyard -10/Materials (discovered 5 exits: [*Mat x3] / [*Min] / [*Sub]) -10/Subcaves (discovered 1 exit: [*Rec]) History --------- Turn | Location | Event 11 | -11/Scrapyard | Discovered new exit (range 15) 233 | -11/Scrapyard | Entered Materials 311 | -10/Materials | Build established: Mutant 517 | -10/Materials | Central database locked down 737 | -10/Materials | Discovered new exit (range 16) 781 | -10/Materials | Discovered new exit (range 10) 955 | -10/Materials | Discovered new exit (range 16) 1407 | -10/Materials | Discovered new exit (range 10) 1477 | -10/Materials | Repaired Assault Rifle 2091 | -10/Materials | Discovered new exit (range 12) 2428 | -10/Materials | Entered Subcaves 2461 | -10/Subcaves | Learned Materials security intel 2497 | -10/Subcaves | A swath of the cavern ceiling suddenly collapsed 2783 | -10/Subcaves | Shifting Twisted Machinery released Sub. Monowheel 2947 | -10/Subcaves | Shifting Twisted Machinery released Battle Cannon 3213 | -10/Subcaves | Discovered new exit (range 11) 3246 | -10/Subcaves | Core integrity fell below 50% 4399 | -10/Subcaves | Shifting Twisted Machinery released Sub. Beam Cannon 4459 | -10/Subcaves | Shifting Twisted Machinery released Battle Cannon 4487 | -10/Subcaves | Shifting Twisted Machinery released Flamer 4494 | -10/Subcaves | Shifting Twisted Machinery released Sub. Shrapnel Launcher 5138 | -10/Subcaves | Core integrity fell below 20% 6170 | -10/Subcaves | Disturbed a concealed Subdweller 6182 | -10/Subcaves | Disturbed a concealed Subdweller 6186 | -10/Subcaves | Destroyed by DB-QMK(R) with Subdweller Laser Last Messages --------------- Gun. 06147_ Searching scrap... 06147_ Found Sub. Machine Gun. 06147_ Found Piercing Trap. 06147_ Found 57 Matter. 06148_ Acquired 10 matter. 06164_ Dropped Barrage Gun. 06165_ Subatomizers dissect the Sub. Machine Gun. 06168_ Acquired Sub. Machine Gun. 06170_ TC-F8G(R) angrily emerges from the Twisted Machinery. 06173_ Aluminum Leg destroyed. 06175_ Subatomizers dissect the Sub. Power Source. 06175_ Lgt. Armor Plating destroyed. 06180_ TC-F8G(R) affixes Scrap Shield Fragment to Scrap Shield. 06182_ DB-QMK(R) angrily emerges from the Twisted Machinery. Map ----- +----------------------------------------------------+ | ???????????????## # ""##"" ##?????????????????? | | ??????????????## #""" ###"" ##??????????????????? | | ??????????????#"""## #?#"" #???????????????????? | | ??????????????#" ## ##?#####???????????????????? | | ???????????????# ##############?????????????? | | ??????????????## # ## ##""## ##????????????? | | ??????????????# " #????????????? | | ??????????????###### ## # ### ##???????????? | | ???????????????????## ########### #???????????? | | #######???####?????## ##???????# #???????????? | | ##### #????## #####???## #???????????? | | ## #????# ##### #??#????????? | | ###??# # ### #????????? | | #??# #????????? | | ## #????????? | | ## ###### #### ## # #????????? | | ## #????####??# #### ## #????????? | | #??####???# #### ### #####????????? | | #??#^ #??# ##?# ## #???#????????? | | #### ### ####### ## ### ?????? | | ##### ^ #### #??# ???? | | #?##^ ^^ ######?# ##### #???? | | ### ^ ^ #?? ##<&<# ### #???? | | ## ^^ ^ ###?#<]R<# #####?? #???? | | ## ^ % ## # #??#*